bitfinex/quotes_ETHUSD_20250722
["timestamp","ask_amount","ask_price","bid_price","bid_amount"]
[1753158362754,8.57723145,3705.5,3705.4,0.001]
[1753158363159,9.58923145,3705.5,3705.4,0.001]
[1753158363585,5.40518868,3705.5,3705.4,0.001]
[1753158363770,0.8089,3705.5,3705.4,0.001]
[1753158363972,5.52625164,3705.5,3705.4,0.001]
[1753158364286,4.71735164,3705.5,3705.4,0.001]
[1753158364661,7.87804277,3705.5,3705.4,0.001]
[1753158364868,9.18704277,3705.5,3705.4,0.001]
[1753158365066,3.17233412,3705.1,3705.0,0.1]
[1753158365285,18.39257414,3705.1,3705.0,0.1]
[1753158365485,18.85457414,3705.1,3705.0,0.1]
[1753158366185,18.3812225,3705.1,3705.0,0.1]
[1753158366599,16.40457414,3705.1,3705.0,0.1]
[1753158366907,13.24359166,3705.1,3705.0,0.1]
[1753158367083,15.94257414,3705.1,3705.0,0.1]
[1753158367261,18.31491554,3705.1,3705.0,0.1]
[1753158368092,17.85291554,3705.1,3705.0,0.1]
[1753158368295,17.76491554,3705.1,3705.0,0.1]
[1753158368705,18.55741554,3705.1,3705.0,0.1]
[1753158369109,18.55741554,3705.1,3705.0,0.101]
[1753158370779,10.12217552,3705.1,3705.0,0.101]
[1753158370980,10.11417552,3705.1,3705.0,0.101]
[1753158371282,10.57617552,3705.1,3705.0,0.101]
[1753158372189,6.33717552,3705.1,3705.0,0.101]
[1753158372390,3.17233412,3705.1,3705.0,0.101]
[1753158372790,7.40933412,3705.1,3705.0,0.101]
[1753158373207,7.87133412,3705.1,3705.0,0.101]
[1753158373517,8.67003412,3705.1,3705.0,0.101]
[1753158373899,0.47335164,3704.0,3703.9,0.5786]
[1753158374107,0.47335164,3704.0,3703.9,0.1344]
[1753158374513,2.69950688,3704.4,3703.5,0.001]
[1753158374514,0.47335164,3703.6,3703.5,0.001]
[1753158374715,0.47335164,3703.9,3703.6,0.4442]
[1753158374917,0.47335164,3704.0,3703.6,0.4442]
[1753158375104,0.47335164,3704.0,3703.7,0.85850002]
[1753158375302,2.69912425,3705.0,3703.9,2.6998569]
[1753158375303,2.69909301,3705.0,3703.9,2.6998569]
[1753158375515,2.69921372,3704.8,3703.9,2.6998569]
[1753158375715,0.47335164,3704.0,3703.8,3.10027799]
[1753158376093,0.47335164,3704.3,3703.9,0.4442]
[1753158376323,0.47335164,3704.0,3703.8,3.10028696]
[1753158376631,0.47335164,3704.4,3704.0,2.69973705]
[1753158376930,0.47335164,3704.1,3703.9,3.09302893]
[1753158377297,0.47335164,3704.1,3704.0,0.4623]
[1753158377497,0.47335164,3704.1,3704.0,3.16208401]
[1753158378290,0.47335164,3704.2,3704.0,3.16206873]
[1753158378495,0.47335164,3704.2,3704.1,0.4623]
[1753158379125,0.47335164,3704.0,3703.7,0.8315]
[1753158379304,0.47335164,3703.8,3703.5,0.001]
[1753158379505,0.47335164,3704.0,3703.5,0.4633]
[1753158379704,0.47335164,3704.0,3703.6,0.4623]
[1753158379906,6.52807407,3704.4,3703.6,0.4623]
[1753158379907,0.47335164,3703.8,3703.6,0.4623]
[1753158380439,0.47335164,3703.8,3703.7,0.4623]
[1753158380604,0.47335164,3703.8,3703.5,0.001]
[1753158380811,0.47335164,3703.6,3703.5,0.001]
[1753158381203,0.47335164,3703.6,3703.5,0.4633]
[1753158381530,0.47335164,3703.6,3703.5,0.001]
[1753158381737,3.17342724,3703.6,3703.5,0.001]
[1753158382042,9.95833208,3703.6,3703.5,0.001]
[1753158382536,10.41843208,3703.6,3703.5,0.001]
[1753158384924,9.95833208,3703.6,3703.5,0.001]
[1753158385125,0.47335164,3703.3,3703.2,12.05186735]
[1753158385353,7.41464597,3703.3,3703.2,12.05186735]
[1753158385544,4.71435164,3703.3,3703.2,12.05186735]
[1753158387266,7.41464597,3703.3,3703.2,12.05186735]
[1753158387556,8.12066076,3703.3,3703.2,12.05186735]
[1753158387763,4.71435164,3703.3,3703.2,12.05186735]
[1753158387964,4.71135164,3703.3,3703.2,12.05186735]
[1753158389168,4.238,3703.3,3703.2,12.05186735]
[1753158389369,4.238,3703.3,3703.2,12.51416735]
[1753158389533,4.71135164,3703.3,3703.2,12.51416735]
[1753158389936,0.47335164,3703.6,3703.3,0.7804]
[1753158390137,5.38264049,3704.3,3703.5,0.1344]
[1753158390355,0.47335164,3703.6,3703.5,0.5967]
[1753158390639,0.47335164,3703.6,3703.5,0.1344]
[1753158390840,3.17342724,3703.6,3703.5,0.1344]
[1753158391156,0.47335164,3703.6,3703.5,0.1344]
[1753158391344,3.17342724,3703.6,3703.5,0.1344]
[1753158391546,0.47335164,3703.3,3703.2,12.18626735]
[1753158391745,0.47335164,3703.3,3703.2,15.34893459]
[1753158391952,0.47335164,3703.3,3703.2,16.9613911]
[1753158392161,0.47335164,3703.7,3703.6,0.7833]
[1753158392334,4.239,3704.0,3703.6,1.2456]
[1753158392554,0.47335164,3703.8,3703.7,3.18930272]
[1753158392874,0.47335164,3703.8,3703.7,3.2967027]
[1753158393059,0.47335164,3703.8,3703.7,0.5967]
[1753158394483,0.47335164,3704.0,3703.9,2.6998569]
[1753158394646,4.70935164,3704.0,3703.9,0.02699856]
[1753158394840,4.70935164,3704.0,3703.9,0.5967]
[1753158395245,4.70935164,3704.0,3703.9,0.1344]
[1753158395773,0.47335164,3704.0,3703.9,0.1344]
[1753158395980,0.47335164,3704.0,3703.9,0.5967]
[1753158396275,4.70735164,3704.0,3703.9,0.5967]
[1753158396571,0.47335164,3704.0,3703.9,3.2965569]
[1753158396774,0.47335164,3704.0,3703.9,3.70454259]
[1753158397479,0.47335164,3704.0,3703.9,1.00468569]
[1753158397773,0.47335164,3704.0,3703.9,3.70454259]
[1753158398275,0.47335164,3704.0,3703.9,1.00468569]
[1753158398464,0.47335164,3704.0,3703.9,0.5967]
[1753158398978,5.72159213,3704.0,3703.6,1.2456]
[1753158399176,0.47335164,3703.8,3703.6,3.48331341]
[1753158399386,0.47335164,3703.8,3703.7,0.4623]
[1753158400202,0.47335164,3703.8,3703.5,4.232]
[1753158400366,0.47335164,3703.8,3703.3,1.2527]
[1753158400566,0.47335164,3703.8,3703.2,13.66432386]
[1753158400567,0.47335164,3703.6,3703.4,0.4623]
[1753158400899,4.228,3703.7,3703.5,0.4623]
[1753158401198,4.228,3703.7,3703.2,12.05186735]
[1753158401199,0.47335164,3703.6,3703.2,12.05186735]
[1753158401347,0.47335164,3703.6,3703.3,2.70029433]
[1753158401551,0.47335164,3703.6,3703.2,14.02903876]
[1753158401752,0.47335164,3703.6,3703.4,2.70021728]
[1753158402190,0.47335164,3703.6,3703.5,3.1624485]
[1753158402353,0.47335164,3703.6,3703.5,3.9747485]
[1753158402553,0.47335164,3703.6,3703.5,1.2746]
[1753158403113,0.47335164,3703.6,3703.5,3.97473419]
[1753158403399,0.47335164,3703.8,3703.7,2.7000027]
[1753158403604,0.47335164,3703.8,3703.7,3.1623027]
[1753158404224,0.47335164,3703.8,3703.7,0.4623]
[1753158404499,0.47335164,3703.8,3703.7,3.1623027]
[1753158405112,0.47335164,3703.6,3703.5,5.0363]
[1753158405278,0.47335164,3703.6,3703.5,3.5124485]
[1753158405461,0.47335164,3703.6,3703.5,7.7354485]
[1753158405797,0.47335164,3703.8,3703.7,2.7000027]
[1753158405962,0.47335164,3703.8,3703.7,3.1623027]
[1753158406357,0.47335164,3703.8,3703.7,0.4623]
[1753158406662,0.47335164,3703.8,3703.5,7.28405357]
[1753158406663,0.47335164,3703.8,3703.5,5.0333]
[1753158407284,0.47335164,3703.8,3703.5,1.2576]
[1753158407761,0.47335164,3703.5,3703.3,4.22]
[1753158407964,0.47335164,3703.5,3703.3,4.6653]
[1753158408770,0.47335164,3703.5,3703.4,2.70015318]
[1753158408974,0.47335164,3703.5,3703.4,2.83455318]
[1753158409170,0.47335164,3703.5,3703.4,0.1344]
[1753158410705,0.47335164,3703.5,3703.4,2.83462141]
[1753158410909,0.47335164,3703.5,3703.4,0.1344]
[1753158411712,0.47335164,3703.5,3703.4,3.27992141]
[1753158412011,0.47335164,3703.5,3703.4,5.50513533]
[1753158412180,0.47335164,3703.5,3703.4,0.1344]
[1753158412991,9.91534049,3704.0,3703.4,0.1344]
[1753158412992,0.47335164,3703.7,3703.4,0.1344]
[1753158413193,0.47335164,3703.5,3703.4,0.1344]
[1753158413715,0.47335164,3703.5,3703.4,0.5797]
[1753158415031,0.47335164,3703.5,3703.4,3.27992141]
[1753158415229,0.47335164,3703.5,3703.4,0.5797]
[1753158415420,0.47335164,3703.7,3703.4,3.27992141]
[1753158415728,0.47335164,3703.5,3703.4,2.83462141]
[1753158415927,0.47335164,3703.5,3703.4,4.214]
[1753158416092,0.47335164,3703.5,3703.4,5.1165]
[1753158416426,0.47335164,3703.5,3703.4,5.5618]
[1753158417193,0.47335164,3703.7,3703.4,7.35026895]
[1753158417515,0.47335164,3703.7,3703.5,0.4453]
[1753158417822,0.47335164,3703.7,3703.6,4.37340075]
[1753158418039,0.47335164,3703.7,3703.6,4.81870075]
[1753158418387,0.002,3703.8,3703.6,4.81870075]
[1753158418614,0.47335164,3703.7,3703.6,4.37340075]
[1753158418788,0.002,3703.8,3703.7,2.7000027]
[1753158419003,0.002,3703.8,3703.7,3.9170027]
[1753158419214,0.002,3704.6,3703.7,4.24400002]
[1753158419524,0.47335164,3704.5,3703.9,3.47150258]
[1753158419853,0.47335164,3704.5,3704.0,5.47168026]
[1753158420144,0.002,3704.6,3704.4,2.83389249]
[1753158420305,0.002,3704.6,3704.5,5.00869419]
[1753158420648,0.002,3704.6,3704.5,5.45399419]
[1753158420797,0.002,3704.6,3704.5,8.15341381]
[1753158420993,0.002,3704.6,3704.5,9.22515695]
[1753158421948,0.002,3704.6,3704.5,12.22515695]
[1753158422608,0.002,3704.6,3704.5,26.32084694]
[1753158422609,1e-08,3704.6,3704.5,26.32084694]
[1753158423037,1e-08,3704.6,3704.5,19.52185294]
[1753158423238,1e-08,3704.6,3704.5,19.88921694]
[1753158423410,1e-08,3704.6,3704.5,20.08866446]
[1753158423613,1e-08,3704.6,3704.5,24.77866446]
[1753158424028,1e-08,3704.6,3704.5,24.77666446]
[1753158424334,1e-08,3704.6,3704.5,47.53267946]
[1753158424525,1e-08,3704.6,3704.5,17.78787346]
[1753158424724,1e-08,3705.0,3704.9,6.45822818]
[1753158424910,1e-08,3705.0,3704.9,28.15004973]
[1753158425104,1e-08,3705.0,3704.9,28.14556973]
[1753158425500,1e-08,3705.0,3704.9,28.69556973]
[1753158425997,1e-08,3705.0,3704.9,28.23500073]
[1753158426203,1e-08,3705.0,3704.9,33.99517573]
[1753158426533,1e-08,3705.0,3704.9,27.67112773]
[1753158426747,1e-08,3705.0,3704.9,29.63024773]
[1753158427251,1e-08,3705.0,3704.9,25.42524773]
[1753158427418,1e-08,3705.0,3704.9,22.17530073]
[1753158427815,5.72159213,3706.1,3705.6,2.6986183]
[1753158428016,5.72159213,3706.1,3705.6,3.23835181]
[1753158428251,0.57335164,3705.7,3705.6,7.0370183]
[1753158428816,0.1,3705.7,3705.6,8.2687183]
[1753158429443,0.1,3705.7,3705.6,2.8330183]
[1753158429775,0.1,3705.7,3705.6,0.1344]
[1753158429963,0.57335164,3705.7,3705.6,0.1344]
[1753158430162,0.47335164,3705.7,3705.6,4.3384]
[1753158431561,0.47335164,3705.7,3705.6,0.1344]
[1753158431894,6.95399213,3705.7,3705.6,4.3364]
[1753158432241,6.95399213,3705.7,3705.6,0.1344]
[1753158432242,9.65253761,3705.7,3705.6,0.1344]
[1753158433584,6.95399213,3705.7,3705.6,0.1344]
[1753158433767,0.47335164,3705.7,3705.6,0.1344]
[1753158434864,6.17069213,3705.7,3705.6,0.1344]
[1753158435080,9.8342806,3705.7,3705.6,0.1344]
[1753158435256,10.6136806,3705.7,3705.6,0.1344]
[1753158436171,0.7774,3705.1,3704.2,0.7862]
[1753158436370,5.24824049,3704.9,3704.4,2.69948912]
[1753158436578,5.24824049,3704.9,3704.5,7.202]
[1753158436893,0.4491,3704.8,3704.5,7.202]
[1753158437064,3.17240854,3705.0,3704.6,0.02699346]
[1753158437065,0.47335164,3705.0,3704.6,0.02699346]
[1753158437270,0.47335164,3705.0,3704.8,2.83357308]
[1753158437590,0.47335164,3705.0,3704.8,4.3364]
[1753158437885,0.47335164,3705.0,3704.8,5.42212616]
[1753158438090,0.47335164,3705.0,3704.9,2.69912818]
[1753158438407,0.47335164,3705.0,3704.9,0.02699128]
[1753158438705,0.47335164,3705.0,3704.8,5.42212616]
[1753158439060,0.47335164,3705.0,3704.9,0.02699128]
[1753158439455,0.47335164,3705.0,3704.9,2.72611946]
[1753158439652,0.47335164,3705.0,3704.8,5.42212616]
[1753158439888,0.47335164,3705.0,3704.8,4.3364]
[1753158440682,0.47335164,3705.0,3704.8,0.1344]
[1753158440898,0.4686,3704.9,3704.8,0.1344]
[1753158441095,0.47335164,3705.0,3704.8,0.1344]
[1753158441598,0.4686,3704.9,3704.8,0.1344]
[1753158441754,3.16772818,3704.9,3704.8,0.1344]
[1753158441959,1.43763203,3704.9,3704.8,0.1344]
[1753158442260,0.47335164,3705.0,3704.8,0.1344]
[1753158444593,0.47335164,3705.0,3704.8,4.3364]
[1753158446022,0.4686,3704.9,3704.8,0.1344]
[1753158446580,5.71684049,3704.9,3704.8,0.1344]
[1753158447479,0.4686,3704.9,3704.8,0.1344]
[1753158447673,0.47335164,3705.0,3704.8,0.1344]
[1753158447879,0.47335164,3705.0,3704.8,2.8335626]
[1753158448079,0.47335164,3705.0,3704.8,0.1344]
[1753158449310,0.94195164,3705.0,3704.8,0.1344]
[1753158449934,0.47335164,3705.0,3704.8,0.1344]
[1753158450100,0.4686,3704.9,3704.8,0.1344]
[1753158450711,0.47335164,3705.0,3704.9,2.69912818]
[1753158450924,0.47335164,3705.0,3704.8,2.83358874]
[1753158451115,0.47335164,3705.0,3704.8,0.1344]
[1753158452040,0.47335164,3705.0,3704.9,2.69912818]
[1753158452207,0.47335164,3705.0,3704.9,3.15142818]
[1753158452599,0.47335164,3705.0,3704.9,7.35342818]
[1753158452839,0.47335164,3705.2,3705.1,2.69898248]
[1753158453052,0.47335164,3705.2,3705.1,3.1782723]
[1753158453547,0.47335164,3705.2,3705.1,4.37635785]
[1753158455928,0.47335164,3705.2,3705.1,1.22507537]
[1753158456103,0.47335164,3705.2,3705.1,0.1344]
[1753158456308,0.47335164,3705.2,3705.1,2.83338248]
[1753158456704,0.47335164,3705.2,3705.1,0.1344]
[1753158458068,0.47335164,3705.2,3705.1,2.83338248]
[1753158458843,5.14395164,3705.2,3703.7,0.001]
[1753158459042,5.14395164,3705.2,3703.7,0.4533]
[1753158459043,6.48999213,3704.6,3703.7,0.4533]
[1753158459352,0.47335164,3704.6,3704.2,0.76]
[1753158459561,0.47335164,3704.6,3704.3,0.02699565]
[1753158460347,3.17269839,3704.6,3704.1,0.4523]
[1753158460658,3.17269839,3704.6,3704.3,4.202]
[1753158461046,3.17269839,3704.6,3704.0,0.001]
[1753158461224,3.17306277,3704.1,3704.0,0.001]
[1753158461425,4.00558144,3703.8,3703.7,0.001]
[1753158461846,4.47418144,3703.8,3703.7,0.001]
[1753158462464,2.70029433,3703.3,3702.7,0.14066757]
[1753158462659,13.46718646,3703.3,3702.7,0.14066757]
[1753158462958,15.55252433,3703.3,3702.7,0.14066757]
[1753158463161,15.55252433,3703.3,3702.4,0.01367347]
[1753158463560,15.55252433,3703.3,3703.0,0.001]
[1753158463939,15.55152433,3703.3,3703.0,0.001]
[1753158465171,1.30565164,3703.3,3703.0,0.001]
[1753158465874,1.77425164,3703.3,3703.0,0.001]
[1753158466476,1.30565164,3703.3,3703.0,0.001]
[1753158466767,4.47454597,3703.3,3703.0,0.001]
[1753158467168,12.45412409,3703.3,3703.0,0.001]
[1753158467376,14.39055192,3703.3,3703.0,0.001]
[1753158472445,14.39055192,3703.3,3703.2,1.53208862]
[1753158473071,18.59455192,3703.3,3703.2,1.53208862]
[1753158473277,14.39055192,3703.3,3703.2,1.53208862]
[1753158473669,18.59455192,3703.3,3703.2,1.53208862]
[1753158473865,6.4109738,3703.3,3703.2,1.53208862]
[1753158474073,6.5453738,3703.3,3703.2,1.53208862]
[1753158474577,13.7493738,3703.3,3703.2,1.53208862]
[1753158475474,10.7493738,3703.3,3703.2,1.53208862]
[1753158475862,10.7493738,3703.3,3703.2,1.48208862]
[1753158476191,10.7493738,3703.3,3702.4,0.01367347]
[1753158476192,2.70087778,3702.5,3702.4,0.01367347]
[1753158476364,4.2112172,3702.5,3702.4,0.01367347]
[1753158476564,8.8515172,3702.5,3702.4,0.01367347]
[1753158479155,0.47335164,3701.6,3701.5,0.1344]
[1753158479556,0.47335164,3701.6,3701.5,0.5267]
[1753158480358,0.47335164,3701.6,3701.5,1.00007]
[1753158480581,0.47335164,3701.8,3701.5,1.00007]
[1753158480783,0.47335164,3701.8,3701.6,1.2627]
[1753158480980,0.47335164,3701.8,3701.7,0.5767]
[1753158481388,3.17474015,3701.8,3701.7,0.1344]
[1753158481695,0.47335164,3701.1,3701.0,0.14072819]
[1753158481993,0.47335164,3701.1,3701.0,0.70444329]
[1753158482301,0.47335164,3701.4,3701.0,5.46916301]
[1753158482598,0.47335164,3702.7,3702.5,2.70086944]
[1753158482798,0.47335164,3702.7,3702.6,0.4423]
[1753158482963,0.1344,3703.5,3702.6,1.15494906]
[1753158483162,0.47335164,3702.9,3702.7,1.2704]
[1753158483362,0.47335164,3702.7,3702.6,0.02700804]
[1753158483764,0.47335164,3702.4,3702.3,0.8281]
[1753158483997,0.47335164,3702.2,3702.1,0.4423]
[1753158484167,0.47335164,3702.2,3702.1,3.2497396]
[1753158484370,0.47335164,3702.5,3702.4,2.70095073]
[1753158484565,0.47335164,3702.7,3702.4,0.1344]
[1753158484767,0.1344,3703.2,3702.8,2.70065171]
[1753158484963,0.47335164,3702.9,3702.8,0.4423]
[1753158485267,0.47335164,3702.9,3702.1,0.54857]
[1753158485505,0.47335164,3702.3,3702.2,0.1344]
[1753158485812,0.47335164,3702.3,3702.2,3.27779664]
[1753158485962,0.47335164,3702.3,3702.2,0.5767]
[1753158486281,0.47335164,3702.3,3702.2,2.83549664]
[1753158486600,0.47335164,3702.3,3702.2,0.1344]
[1753158486779,0.47335164,3702.3,3702.2,2.83549664]
[1753158486981,0.47335164,3702.3,3702.2,4.33600819]
[1753158487794,0.1,3703.2,3702.6,2.70077277]
[1753158487997,0.1,3703.2,3702.7,2.7007071]
[1753158488173,0.1,3703.2,3702.8,0.1344]
[1753158488374,0.47335164,3702.9,3702.8,0.5767]
[1753158488612,0.47335164,3702.9,3702.8,3.14295896]
[1753158488906,0.47335164,3703.0,3702.8,1.66453579]
[1753158489108,0.47335164,3703.0,3702.9,2.70058602]
[1753158489416,0.47335164,3703.0,3702.9,3.14288602]
[1753158489626,0.47335164,3703.0,3702.9,0.4423]
[1753158490410,0.1,3703.2,3702.9,3.14288602]
[1753158490723,0.1,3703.2,3703.1,0.1344]
[1753158490925,0.1,3703.2,3703.1,2.86184457]
[1753158491110,0.57335164,3703.2,3703.1,0.5767]
[1753158491517,0.57335164,3703.2,3703.1,0.1344]
[1753158491905,5.8224414,3703.2,3703.1,0.1344]
[1753158492121,0.57335164,3703.2,3703.1,0.1344]
[1753158492296,1.29731631,3703.2,3703.1,0.1344]
[1753158493208,3.27371888,3703.2,3703.1,0.1344]
[1753158493430,0.47335164,3702.7,3702.6,4.3484]
[1753158493722,0.47335164,3702.7,3702.6,0.1344]
[1753158494085,5.7224414,3702.7,3702.6,0.1344]
[1753158494287,0.47335164,3702.1,3701.7,0.8047]
[1753158494493,0.47335164,3702.1,3701.8,0.4423]
[1753158494693,0.47335164,3702.1,3702.0,3.50594257]
[1753158494925,0.47335164,3702.1,3702.0,1.247]
[1753158495130,0.47335164,3702.4,3702.0,1.247]
[1753158495316,0.47335164,3702.4,3702.1,4.69331169]
[1753158495528,0.47335164,3702.6,3702.5,2.70087778]
[1753158495696,0.1,3703.2,3703.1,2.70044017]
[1753158495896,0.1,3703.2,3703.1,7.75914457]
[1753158496194,0.1,3703.2,3703.1,8.17444017]
[1753158497432,0.1,3703.2,3703.1,3.94744017]
[1753158497636,0.1,3703.2,3703.1,8.83823809]
[1753158498928,0.1,3703.2,3703.1,8.83723809]
[1753158499092,0.1,3703.2,3703.1,8.83623809]
[1753158500505,0.1,3703.2,3703.1,8.83423809]
[1753158502048,0.1,3703.2,3703.1,11.83423809]
[1753158502344,0.1,3703.2,3703.1,7.61223809]
[1753158502514,0.1,3703.2,3703.1,11.83223809]
[1753158504040,0.1,3703.2,3703.1,7.61223809]
[1753158504211,0.1,3703.2,3703.1,11.96363809]
[1753158505242,0.1,3703.2,3703.1,7.74663809]
[1753158505438,0.1,3703.2,3703.1,11.96363809]
[1753158505962,0.002,3704.0,3703.9,3.5249569]
[1753158506116,0.002,3704.0,3703.9,8.38944653]
[1753158506315,0.002,3704.0,3703.9,8.92544797]
[1753158507140,0.002,3704.0,3703.9,4.71044797]
[1753158507454,0.002,3704.0,3703.9,8.92644797]
[1753158508447,0.002,3704.0,3703.9,4.71044797]
[1753158508615,0.002,3704.0,3703.9,4.30884653]
[1753158508957,0.002,3704.0,3703.9,8.95144653]
[1753158509252,0.47535164,3704.0,3703.9,7.4768569]
[1753158509462,0.002,3704.0,3703.9,7.4768569]
[1753158510553,0.002,3704.0,3703.9,8.2443569]
[1753158511228,0.002,3704.0,3703.9,4.0303569]
[1753158511427,0.002,3704.0,3703.9,8.2403569]
[1753158511663,0.002,3704.0,3703.9,9.33438798]
[1753158514833,0.002,3704.0,3703.9,12.33438798]
[1753158515033,0.002,3704.5,3704.4,3.51729249]
[1753158515238,0.002,3704.5,3704.4,7.85769249]
[1753158515461,0.002,3704.5,3704.4,8.28629249]
[1753158515667,0.002,3704.5,3704.4,9.36222963]
[1753158516777,0.47335164,3705.1,3705.0,2.69905533]
[1753158516989,0.47335164,3705.1,3705.0,8.15045533]
[1753158517154,0.47335164,3705.1,3705.0,8.28485533]
[1753158517355,0.47335164,3705.1,3705.0,8.94965325]
[1753158517792,0.47335164,3705.1,3705.0,8.94865325]
[1753158518987,0.002,3705.2,3705.1,2.69898248]
[1753158519483,0.002,3705.2,3705.1,3.12758248]
[1753158520787,0.002,3705.2,3705.1,6.1545723]
[1753158520987,0.002,3705.2,3705.1,7.22161356]
[1753158521580,2.002,3705.7,3705.1,7.22161356]
[1753158521581,0.52386248,3705.7,3705.6,2.6986183]
[1753158521779,0.002,3706.1,3706.0,2.69832703]
[1753158521968,0.002,3706.1,3706.0,4.3384]
[1753158522170,0.002,3706.1,3706.0,0.1344]
[1753158522391,0.002,3706.1,3706.0,4.3384]
[1753158522596,0.4766,3706.1,3706.0,4.3374]
[1753158522991,0.002,3706.1,3706.0,7.03572703]
[1753158523796,0.002,3706.1,3706.0,8.27732703]
[1753158523995,0.002,3706.1,3706.0,0.1344]
[1753158524176,0.002,3706.1,3706.0,4.3374]
[1753158524378,0.002,3706.1,3706.0,7.03572703]
[1753158524793,0.002,3706.1,3706.0,4.3374]
[1753158524991,6.00287094,3706.1,3706.0,4.3374]
[1753158525193,1.2354,3706.1,3706.0,4.3374]
[1753158525716,3.93365422,3706.1,3706.0,4.3374]
[1753158525916,2.15297252,3706.1,3706.0,4.3374]
[1753158526235,2.15297252,3706.1,3706.0,0.1344]
[1753158526395,0.002,3706.1,3706.0,0.1344]
[1753158526583,0.4766,3706.1,3706.0,4.3374]
[1753158526779,0.4766,3706.1,3706.0,0.1344]
[1753158527194,0.4766,3706.1,3706.0,4.3374]
[1753158527695,0.4766,3706.1,3706.0,0.1344]
[1753158527897,4.09241419,3706.1,3706.0,4.3374]
[1753158528098,2.69844943,3705.9,3705.1,3.0]
[1753158528316,5.24207094,3705.7,3705.3,3.0]
[1753158528517,1.2039,3705.6,3705.5,0.1344]
[1753158528723,3.9025183,3705.6,3705.5,0.1344]
[1753158529299,4.70352607,3705.6,3705.5,0.1344]
[1753158529514,2.69890964,3705.2,3705.1,0.1344]
[1753158529836,7.94092525,3705.3,3705.1,0.1344]
[1753158530019,0.4303,3705.2,3705.1,0.1344]
[1753158530201,3.90280964,3705.2,3705.1,0.1344]
[1753158530396,1.2039,3705.2,3705.1,0.1344]
[1753158530820,0.4303,3705.5,3705.1,0.1344]
[1753158531031,1.2039,3705.5,3705.1,0.1344]
[1753158531222,1.2039,3705.5,3705.4,0.1344]
[1753158531424,3.90259663,3705.5,3705.4,0.1344]
[1753158532500,0.8193,3706.0,3705.4,0.1344]
[1753158532705,0.8193,3706.0,3705.9,0.1344]
[1753158533912,0.002,3706.1,3705.9,0.1344]
[1753158535111,8.37069797,3706.0,3705.9,0.1344]
[1753158535334,5.24207094,3706.0,3705.9,0.1344]
[1753158535536,0.002,3706.1,3705.9,0.1344]
[1753158536129,0.002,3706.1,3706.0,0.02698327]
[1753158536329,0.002,3706.1,3705.9,2.83279427]
[1753158536528,0.002,3706.1,3706.0,2.7253103]
[1753158536952,0.002,3706.1,3706.0,7.23449806]
[1753158537159,0.002,3706.1,3706.0,7.70649806]
[1753158539264,0.002,3706.5,3706.0,7.70649806]
[1753158539265,0.002,3706.5,3706.4,2.69803582]
[1753158539595,0.002,3706.5,3706.4,6.90003582]
[1753158539808,0.002,3706.5,3706.4,9.34645281]
[1753158541168,0.002,3706.5,3706.4,6.64841699]
[1753158541462,0.002,3706.5,3706.4,0.1344]
[1753158541664,5.67437094,3706.5,3706.4,0.1344]
[1753158542886,5.24407094,3706.5,3706.4,0.1344]
[1753158543109,0.002,3706.5,3706.4,0.1344]
[1753158543504,0.002,3706.5,3706.4,4.13613582]
[1753158543707,0.002,3706.5,3706.4,5.26674393]
[1753158544015,0.002,3706.5,3706.4,8.96976358]
[1753158544164,0.002,3706.5,3706.4,12.44176358]
[1753158544370,0.002,3706.5,3706.4,0.1344]
[1753158544371,1.228,3706.5,3706.4,0.1344]
[1753158544600,3.92596303,3706.5,3706.4,0.1344]
[1753158544805,1.228,3706.5,3706.4,0.1344]
[1753158545308,0.7977,3706.5,3706.4,0.1344]
[1753158545872,0.002,3706.5,3706.4,0.1344]
[1753158546294,3.13026303,3706.5,3706.4,0.1344]
[1753158546699,0.4323,3706.5,3706.4,0.1344]
[1753158546972,0.002,3706.5,3706.4,0.1344]
[1753158548097,0.4323,3706.5,3706.4,0.1344]
[1753158549015,3.13026303,3706.5,3706.4,0.1344]
[1753158549611,0.002,3706.5,3706.4,0.1344]
[1753158550714,0.7687,3706.8,3706.4,1.19330381]
[1753158550879,0.7687,3706.8,3706.4,3.89132744]
[1753158551085,0.002,3706.8,3706.7,0.1344]
[1753158551410,3.13004468,3706.8,3706.7,0.1344]
[1753158551616,3.95944468,3706.8,3706.7,0.1344]
[1753158551775,2.69803582,3706.4,3706.3,0.1344]
[1753158551977,2.69839854,3706.0,3705.3,3.0]
[1753158552223,2.69827681,3706.1,3705.9,0.1344]
[1753158552521,0.8294,3706.4,3705.9,0.1344]
[1753158552681,0.4303,3706.2,3705.8,0.001]
[1753158553110,0.8294,3706.1,3705.8,0.001]
[1753158553700,0.4303,3706.0,3705.8,0.001]
[1753158554211,0.8294,3706.1,3705.9,0.1344]
[1753158554377,0.8294,3706.1,3705.9,2.83274145]
[1753158554574,1.2357,3706.4,3705.9,2.83274145]
[1753158554778,0.4303,3706.3,3705.8,0.001]
[1753158555181,0.4303,3706.2,3705.8,0.001]
[1753158555413,0.4303,3706.3,3706.2,0.1344]
[1753158558711,0.97397,3706.3,3706.2,0.1344]
[1753158558923,3.44894931,3706.2,3705.9,0.1344]
[1753158559147,7.37146633,3706.1,3705.9,0.1344]
[1753158559294,0.7507,3706.0,3705.9,0.1344]
[1753158559622,3.92122703,3706.0,3705.9,0.1344]
[1753158559834,5.05762941,3706.0,3705.8,0.001]
[1753158560130,11.13578533,3705.9,3705.8,0.001]
[1753158560426,11.90738533,3705.9,3705.8,0.001]
[1753158560586,16.10838533,3705.9,3705.8,0.001]
[1753158560792,3.94219984,3705.9,3705.8,0.001]
[1753158561002,9.48432582,3705.9,3705.8,0.001]
[1753158561593,8.93432582,3705.9,3705.8,0.001]
[1753158561798,8.27759984,3705.9,3705.8,0.001]
[1753158562040,1.3782,3705.9,3705.8,0.001]
[1753158562322,8.14319984,3705.9,3705.8,0.001]
[1753158562923,5.4448,3705.9,3705.8,0.001]
[1753158563429,8.14319984,3705.9,3705.8,0.001]
[1753158564026,8.9551558,3705.9,3705.8,0.001]
[1753158565328,6.25675596,3705.9,3705.8,0.001]
[1753158565535,1.2438,3705.9,3705.8,0.001]